[Event "Early-Titled-Tuesday-Blitz-October-24-2023"]
[Site "Chess.com"]
[Date "2023.10.24"]
[Round "8"]
[White "Maect19"]
[Black "Juicy_Fork"]
[Result "1-0"]
[WhiteElo "2299"]
[BlackElo "2440"]
[TimeControl "180+1"]
[EndTime "9:27:13 PDT"]
[Termination "Maect19 won by checkmate"]

1. d4 {[%clk 0:03:00.9]} 1... Nf6 {[%clk 0:03:00.1]} 2. Nf3 {[%clk 0:03:00.8]}
2... g6 {[%clk 0:03:00]} 3. c3 {[%clk 0:02:58.4]} 3... Bg7 {[%clk 0:02:59.5]} 4.
Bf4 {[%clk 0:02:57.9]} 4... O-O {[%clk 0:02:59.2]} 5. Nbd2 {[%clk 0:02:57.9]}
5... d5 {[%clk 0:02:59]} 6. h3 {[%clk 0:02:56]} 6... c5 {[%clk 0:02:56]} 7. e3
{[%clk 0:02:55.8]} 7... Nc6 {[%clk 0:02:54.8]} 8. Be2 {[%clk 0:02:55.6]} 8...
Qb6 {[%clk 0:02:13.3]} 9. Qb3 {[%clk 0:02:53.2]} 9... c4 {[%clk 0:02:12.7]} 10.
Qxb6 {[%clk 0:02:52]} 10... axb6 {[%clk 0:02:13.6]} 11. a3 {[%clk 0:02:51.5]}
11... Ne4 {[%clk 0:02:08.6]} 12. Nxe4 {[%clk 0:02:49.5]} 12... dxe4 {[%clk
0:02:09.5]} 13. Nd2 {[%clk 0:02:49.1]} 13... b5 {[%clk 0:01:56.5]} 14. Nxe4
{[%clk 0:02:46.3]} 14... Bf5 {[%clk 0:01:53.1]} 15. Bf3 {[%clk 0:02:28.5]} 15...
Na5 {[%clk 0:01:51.4]} 16. O-O {[%clk 0:02:23.1]} 16... Nb3 {[%clk 0:01:51]} 17.
Rad1 {[%clk 0:02:21.6]} 17... Rfe8 {[%clk 0:01:38.4]} 18. Bg3 {[%clk 0:02:07.7]}
18... Rad8 {[%clk 0:01:27.8]} 19. Nc5 {[%clk 0:01:58.6]} 19... Nxc5 {[%clk
0:01:16.8]} 20. dxc5 {[%clk 0:01:59.5]} 20... Bd3 {[%clk 0:01:08.7]} 21. Bxb7
{[%clk 0:01:39.2]} 21... e5 {[%clk 0:00:37.8]} 22. Rfe1 {[%clk 0:01:17.3]} 22...
f5 {[%clk 0:00:33.6]} 23. c6 {[%clk 0:01:07.7]} 23... Kf7 {[%clk 0:00:33.1]} 24.
Bh4 {[%clk 0:01:00.3]} 24... Rb8 {[%clk 0:00:30.2]} 25. f3 {[%clk 0:00:54.4]}
25... h6 {[%clk 0:00:26.9]} 26. e4 {[%clk 0:00:52.9]} 26... fxe4 {[%clk
0:00:19.1]} 27. fxe4 {[%clk 0:00:53.8]} 27... Ke6 {[%clk 0:00:18.3]} 28. Bf2
{[%clk 0:00:52.9]} 28... Rxb7 {[%clk 0:00:14.1]} 29. cxb7 {[%clk 0:00:52.4]}
29... Rb8 {[%clk 0:00:14.8]} 30. Re3 {[%clk 0:00:47.2]} 30... Rxb7 {[%clk
0:00:15]} 31. Rexd3 {[%clk 0:00:46.2]} 31... cxd3 {[%clk 0:00:15.9]} 32. Rxd3
{[%clk 0:00:45.4]} 32... Bf8 {[%clk 0:00:12.3]} 33. Rd5 {[%clk 0:00:44.5]} 33...
Bd6 {[%clk 0:00:10.8]} 34. Kf1 {[%clk 0:00:42.8]} 34... g5 {[%clk 0:00:09.6]}
35. Ke2 {[%clk 0:00:41.2]} 35... h5 {[%clk 0:00:09.3]} 36. g4 {[%clk 0:00:37.5]}
36... hxg4 {[%clk 0:00:07.8]} 37. hxg4 {[%clk 0:00:38.4]} 37... Rh7 {[%clk
0:00:03.6]} 38. Rxb5 {[%clk 0:00:36.2]} 38... Rh1 {[%clk 0:00:04.2]} 39. a4
{[%clk 0:00:35]} 39... Ra1 {[%clk 0:00:03.9]} 40. a5 {[%clk 0:00:34.6]} 40...
Bc7 {[%clk 0:00:02.1]} 41. b4 {[%clk 0:00:30.4]} 41... Ra2+ {[%clk 0:00:01.9]}
42. Kf3 {[%clk 0:00:29.4]} 42... Ra3 {[%clk 0:00:02.4]} 43. Rc5 {[%clk
0:00:28.2]} 43... Bd6 {[%clk 0:00:02.9]} 44. Rc6 {[%clk 0:00:26.5]} 44... Kd7
{[%clk 0:00:03.1]} 45. Rc4 {[%clk 0:00:25.3]} 45... Ra4 {[%clk 0:00:01.6]} 46.
Bc5 {[%clk 0:00:24.4]} 46... Bc7 {[%clk 0:00:01.6]} 47. Bb6 {[%clk 0:00:23.7]}
47... Bd6 {[%clk 0:00:01.6]} 48. Ke3 {[%clk 0:00:19.6]} 48... Ra3 {[%clk
0:00:01.4]} 49. Kd3 {[%clk 0:00:19.8]} 49... Ra2 {[%clk 0:00:01.8]} 50. b5
{[%clk 0:00:19.8]} 50... Rb2 {[%clk 0:00:01.7]} 51. a6 {[%clk 0:00:17.5]} 51...
Ra2 {[%clk 0:00:01.8]} 52. a7 {[%clk 0:00:16.3]} 52... Ra1 {[%clk 0:00:02.2]}
53. Rb4 {[%clk 0:00:16.1]} 53... Bxb4 {[%clk 0:00:01.7]} 54. cxb4 {[%clk
0:00:16.8]} 54... Kc8 {[%clk 0:00:02.1]} 55. Kc4 {[%clk 0:00:16.2]} 55... Kb7
{[%clk 0:00:02.4]} 56. Bc5 {[%clk 0:00:16.8]} 56... Rd1 {[%clk 0:00:02.5]} 57.
b6 {[%clk 0:00:14.2]} 57... Rd7 {[%clk 0:00:02]} 58. b5 {[%clk 0:00:13.3]} 58...
Rd1 {[%clk 0:00:01.9]} 59. Be3 {[%clk 0:00:13]} 59... Re1 {[%clk 0:00:01.2]} 60.
Kd3 {[%clk 0:00:12.4]} 60... Rf1 {[%clk 0:00:01.6]} 61. Bxg5 {[%clk 0:00:12.1]}
61... Rf7 {[%clk 0:00:02.5]} 62. Be3 {[%clk 0:00:12]} 62... Rg7 {[%clk
0:00:03.1]} 63. g5 {[%clk 0:00:12.3]} 63... Rg6 {[%clk 0:00:03.8]} 64. Kc4
{[%clk 0:00:12.7]} 64... Rg8 {[%clk 0:00:04.4]} 65. Kd5 {[%clk 0:00:13.2]} 65...
Re8 {[%clk 0:00:05.1]} 66. Bc5 {[%clk 0:00:11]} 66... Rg8 {[%clk 0:00:04.2]} 67.
Kxe5 {[%clk 0:00:09.8]} 67... Rxg5+ {[%clk 0:00:03.8]} 68. Kd4 {[%clk
0:00:10.4]} 68... Rg1 {[%clk 0:00:03.7]} 69. e5 {[%clk 0:00:11]} 69... Rd1+
{[%clk 0:00:04.6]} 70. Kc4 {[%clk 0:00:11.4]} 70... Rc1+ {[%clk 0:00:04.8]} 71.
Kd5 {[%clk 0:00:11.8]} 71... Rd1+ {[%clk 0:00:05.1]} 72. Bd4 {[%clk 0:00:12.3]}
72... Rc1 {[%clk 0:00:06]} 73. e6 {[%clk 0:00:12.4]} 73... Rc8 {[%clk
0:00:05.2]} 74. e7 {[%clk 0:00:11.8]} 74... Rg8 {[%clk 0:00:03.5]} 75. Ke6
{[%clk 0:00:11.8]} 75... Ka8 {[%clk 0:00:03.6]} 76. Kd7 {[%clk 0:00:11.1]} 76...
Kb7 {[%clk 0:00:03]} 77. e8=Q {[%clk 0:00:10.3]} 77... Rg7+ {[%clk 0:00:02.6]}
78. Ke6 {[%clk 0:00:07.3]} 78... Rg6+ {[%clk 0:00:02.1]} 79. Qxg6 {[%clk
0:00:06.9]} 79... Kc8 {[%clk 0:00:01.7]} 80. Qe8+ {[%clk 0:00:07.3]} 80... Kb7
{[%clk 0:00:02.6]} 81. a8=Q# {[%clk 0:00:07]} 1-0

[Event "Early-Titled-Tuesday-Blitz-October-24-2023"]
[Site "Chess.com"]
[Date "2023.10.24"]
[Round "8"]
[White "AlexPapasimakopoulos"]
[Black "Elsa167"]
[Result "1/2-1/2"]
[WhiteElo "2697"]
[BlackElo "2869"]
[TimeControl "180+1"]
[EndTime "9:27:15 PDT"]
[Termination "Game drawn - insufficient material"]

1. Nf3 {[%clk 0:03:00.9]} 1... g6 {[%clk 0:02:51.9]} 2. e4 {[%clk 0:02:58.7]}
2... Bg7 {[%clk 0:02:52.5]} 3. d4 {[%clk 0:02:58.3]} 3... a6 {[%clk 0:02:52.3]}
4. a4 {[%clk 0:02:56.1]} 4... d6 {[%clk 0:02:51.8]} 5. h3 {[%clk 0:02:56.1]}
5... b6 {[%clk 0:02:52]} 6. Bd3 {[%clk 0:02:55.6]} 6... Bb7 {[%clk 0:02:52.5]}
7. O-O {[%clk 0:02:55.9]} 7... Nd7 {[%clk 0:02:51.3]} 8. Re1 {[%clk 0:02:55.5]}
8... e6 {[%clk 0:02:49.4]} 9. c4 {[%clk 0:02:52.7]} 9... e5 {[%clk 0:02:43]} 10.
Bg5 {[%clk 0:02:48.2]} 10... Bf6 {[%clk 0:02:39.1]} 11. Be3 {[%clk 0:02:38.5]}
11... a5 {[%clk 0:02:33.4]} 12. Nc3 {[%clk 0:02:33.9]} 12... Ne7 {[%clk
0:02:32.8]} 13. Bh6 {[%clk 0:02:22.2]} 13... exd4 {[%clk 0:02:24.7]} 14. Nd5
{[%clk 0:01:46.1]} 14... Ng8 {[%clk 0:01:38.6]} 15. Nxf6+ {[%clk 0:01:41.3]}
15... Qxf6 {[%clk 0:01:39.5]} 16. Bg5 {[%clk 0:01:40.7]} 16... Qg7 {[%clk
0:01:39.5]} 17. e5 {[%clk 0:00:57.3]} 17... dxe5 {[%clk 0:01:39.7]} 18. c5
{[%clk 0:00:55.3]} 18... f6 {[%clk 0:01:11.1]} 19. cxb6 {[%clk 0:00:55.1]} 19...
cxb6 {[%clk 0:00:44.5]} 20. Bb5 {[%clk 0:00:55]} 20... Ne7 {[%clk 0:00:18.9]}
21. Nxd4 {[%clk 0:00:45.5]} 21... exd4 {[%clk 0:00:15.7]} 22. Qxd4 {[%clk
0:00:46.4]} 22... O-O {[%clk 0:00:12.4]} 23. Qxd7 {[%clk 0:00:41.7]} 23... Nf5
{[%clk 0:00:11.9]} 24. Qxg7+ {[%clk 0:00:32.1]} 24... Kxg7 {[%clk 0:00:12.8]}
25. Bf4 {[%clk 0:00:32]} 25... Rf7 {[%clk 0:00:13.3]} 26. Rad1 {[%clk
0:00:30.8]} 26... g5 {[%clk 0:00:11.6]} 27. Bd2 {[%clk 0:00:26.6]} 27... Nh4
{[%clk 0:00:11.9]} 28. f3 {[%clk 0:00:26.4]} 28... Bxf3 {[%clk 0:00:08.2]} 29.
gxf3 {[%clk 0:00:26.7]} 29... Nxf3+ {[%clk 0:00:09.1]} 30. Kg2 {[%clk
0:00:25.1]} 30... Nxe1+ {[%clk 0:00:10]} 31. Bxe1 {[%clk 0:00:25.4]} 31... Rc8
{[%clk 0:00:07.6]} 32. Rd2 {[%clk 0:00:24.3]} 32... f5 {[%clk 0:00:05.3]} 33.
Bf2 {[%clk 0:00:24.3]} 33... f4 {[%clk 0:00:04.7]} 34. Bxb6 {[%clk 0:00:23.3]}
34... h5 {[%clk 0:00:05.4]} 35. Bxa5 {[%clk 0:00:23]} 35... g4 {[%clk
0:00:05.8]} 36. hxg4 {[%clk 0:00:23.2]} 36... hxg4 {[%clk 0:00:06.7]} 37. Bc3+
{[%clk 0:00:18.6]} 37... Kg6 {[%clk 0:00:07.1]} 38. Bd7 {[%clk 0:00:18.7]} 38...
f3+ {[%clk 0:00:04.9]} 39. Kf2 {[%clk 0:00:17.6]} 39... g3+ {[%clk 0:00:05]} 40.
Kxg3 {[%clk 0:00:17.3]} 40... f2 {[%clk 0:00:05.9]} 41. Rxf2 {[%clk 0:00:16.2]}
41... Rxd7 {[%clk 0:00:06.1]} 42. a5 {[%clk 0:00:16.8]} 42... Ra8 {[%clk
0:00:04.3]} 43. Rf6+ {[%clk 0:00:17.4]} 43... Kg5 {[%clk 0:00:04.5]} 44. Kf3
{[%clk 0:00:17.1]} 44... Rxa5 {[%clk 0:00:02.7]} 45. Bxa5 {[%clk 0:00:13.4]}
45... Kxf6 {[%clk 0:00:02.7]} 46. Ke4 {[%clk 0:00:13.6]} 46... Ke6 {[%clk
0:00:03.3]} 47. Bb4 {[%clk 0:00:13.6]} 47... Rd5 {[%clk 0:00:03.5]} 48. Bc3
{[%clk 0:00:13.9]} 48... Rh5 {[%clk 0:00:03.7]} 49. Kf4 {[%clk 0:00:11.8]} 49...
Rh4+ {[%clk 0:00:04.2]} 50. Kg3 {[%clk 0:00:12.2]} 50... Rc4 {[%clk 0:00:05.1]}
51. Kf3 {[%clk 0:00:12.3]} 51... Kd5 {[%clk 0:00:05.3]} 52. Ke3 {[%clk
0:00:12.8]} 52... Rh4 {[%clk 0:00:05.9]} 53. Kf3 {[%clk 0:00:13.4]} 53... Rh7
{[%clk 0:00:05.2]} 54. Kf4 {[%clk 0:00:13.7]} 54... Rf7+ {[%clk 0:00:05]} 55.
Ke3 {[%clk 0:00:14.4]} 55... Rf8 {[%clk 0:00:05.4]} 56. Kd3 {[%clk 0:00:14.1]}
56... Rf3+ {[%clk 0:00:05.4]} 57. Ke2 {[%clk 0:00:14.7]} 57... Ke4 {[%clk
0:00:05.7]} 58. Bd2 {[%clk 0:00:11.8]} 58... Rh3 {[%clk 0:00:04.8]} 59. Kf1
{[%clk 0:00:11.2]} 59... Rh2 {[%clk 0:00:04.7]} 60. Bc3 {[%clk 0:00:10.4]} 60...
Ke3 {[%clk 0:00:03.4]} 61. Kg1 {[%clk 0:00:10.3]} 61... Rc2 {[%clk 0:00:03.3]}
62. Ba5 {[%clk 0:00:10]} 62... Kf3 {[%clk 0:00:03.7]} 63. Bb6 {[%clk 0:00:09.3]}
63... Rg2+ {[%clk 0:00:03.1]} 64. Kh1 {[%clk 0:00:08.9]} 64... Kg3 {[%clk
0:00:03.3]} 65. Bc7+ {[%clk 0:00:08.9]} 65... Kh3 {[%clk 0:00:03.9]} 66. b4
{[%clk 0:00:07]} 66... Rc2 {[%clk 0:00:03.7]} 67. Bb6 {[%clk 0:00:07.2]} 67...
Rh2+ {[%clk 0:00:02.6]} 68. Kg1 {[%clk 0:00:07]} 68... Rb2 {[%clk 0:00:03.1]}
69. Bc5 {[%clk 0:00:07]} 69... Kg3 {[%clk 0:00:02.7]} 70. Bd6+ {[%clk 0:00:07]}
70... Kf3 {[%clk 0:00:03.4]} 71. Kh1 {[%clk 0:00:06.9]} 71... Rg2 {[%clk
0:00:03.6]} 72. Bc5 {[%clk 0:00:06.6]} 72... Kg3 {[%clk 0:00:03.7]} 73. Bd6+
{[%clk 0:00:06.8]} 73... Kh3 {[%clk 0:00:03.8]} 74. Bc5 {[%clk 0:00:06.6]} 74...
Rg3 {[%clk 0:00:02.5]} 75. Bd6 {[%clk 0:00:06]} 75... Rb3 {[%clk 0:00:02.4]} 76.
Bc5 {[%clk 0:00:06]} 76... Rb1+ {[%clk 0:00:02.7]} 77. Bg1 {[%clk 0:00:06.1]}
77... Kg3 {[%clk 0:00:03.5]} 78. b5 {[%clk 0:00:05.2]} 78... Kf3 {[%clk
0:00:04.2]} 79. b6 {[%clk 0:00:05.1]} 79... Kg3 {[%clk 0:00:04.8]} 80. b7 {[%clk
0:00:04.6]} 80... Rxb7 {[%clk 0:00:05.7]} 81. Bc5 {[%clk 0:00:03.3]} 81... Rh7+
{[%clk 0:00:04.7]} 82. Kg1 {[%clk 0:00:03.8]} 82... Rd7 {[%clk 0:00:05.2]} 83.
Kh1 {[%clk 0:00:03.7]} 83... Rd5 {[%clk 0:00:05]} 84. Bb6 {[%clk 0:00:03.8]}
84... Rd6 {[%clk 0:00:04.8]} 85. Bc7 {[%clk 0:00:04]} 85... Kh3 {[%clk
0:00:04.4]} 86. Bxd6 {[%clk 0:00:04.9]} 1/2-1/2

[Event "Early-Titled-Tuesday-Blitz-October-24-2023"]
[Site "Chess.com"]
[Date "2023.10.24"]
[Round "8"]
[White "IMRosen"]
[Black "chessfatbear"]
[Result "1-0"]
[WhiteElo "2609"]
[BlackElo "2797"]
[TimeControl "180+1"]
[EndTime "9:27:26 PDT"]
[Termination "IMRosen won on time"]

1. e4 {[%clk 0:03:00.9]} 1... c6 {[%clk 0:02:53]} 2. d4 {[%clk 0:02:59.5]} 2...
d5 {[%clk 0:02:53.9]} 3. Nc3 {[%clk 0:02:59.9]} 3... dxe4 {[%clk 0:02:54]} 4.
Nxe4 {[%clk 0:03:00.8]} 4... Nf6 {[%clk 0:02:54.9]} 5. Nxf6+ {[%clk 0:03:00.5]}
5... exf6 {[%clk 0:02:55.8]} 6. Be3 {[%clk 0:03:01.2]} 6... Bd6 {[%clk
0:02:54.8]} 7. Bd3 {[%clk 0:03:01.5]} 7... h5 {[%clk 0:02:53.2]} 8. Ne2 {[%clk
0:02:54.7]} 8... Qc7 {[%clk 0:02:52.9]} 9. Qd2 {[%clk 0:02:51.4]} 9... O-O
{[%clk 0:02:52.5]} 10. O-O-O {[%clk 0:02:42.6]} 10... Re8 {[%clk 0:02:50.2]} 11.
Kb1 {[%clk 0:02:41.5]} 11... Nd7 {[%clk 0:02:49.2]} 12. Ng3 {[%clk 0:02:34.5]}
12... g6 {[%clk 0:02:43.3]} 13. Ne4 {[%clk 0:02:21.1]} 13... Bf8 {[%clk
0:02:36]} 14. Bf4 {[%clk 0:02:16.2]} 14... Qd8 {[%clk 0:02:35.4]} 15. f3 {[%clk
0:02:06.6]} 15... Nb6 {[%clk 0:02:30.7]} 16. Bh6 {[%clk 0:01:59.2]} 16... f5
{[%clk 0:02:09.7]} 17. Nc3 {[%clk 0:01:23.4]} 17... Qxd4 {[%clk 0:02:01.8]} 18.
Bxf8 {[%clk 0:01:22.1]} 18... Rxf8 {[%clk 0:02:02.6]} 19. Qg5 {[%clk 0:01:13.9]}
19... Qg7 {[%clk 0:01:56.5]} 20. h3 {[%clk 0:01:10.8]} 20... Be6 {[%clk
0:01:30.7]} 21. g4 {[%clk 0:01:10.9]} 21... fxg4 {[%clk 0:00:47.6]} 22. hxg4
{[%clk 0:01:07.3]} 22... hxg4 {[%clk 0:00:46.8]} 23. fxg4 {[%clk 0:01:06.6]}
23... Nd5 {[%clk 0:00:46.5]} 24. Ne4 {[%clk 0:01:01.8]} 24... f6 {[%clk
0:00:38.2]} 25. Qh4 {[%clk 0:00:49.1]} 25... g5 {[%clk 0:00:38.7]} 26. Qg3
{[%clk 0:00:42.7]} 26... Nf4 {[%clk 0:00:32.6]} 27. Nc5 {[%clk 0:00:42.8]} 27...
Bd5 {[%clk 0:00:24.4]} 28. Rh7 {[%clk 0:00:40]} 28... Qxh7 {[%clk 0:00:24]} 29.
Bxh7+ {[%clk 0:00:40.9]} 29... Kxh7 {[%clk 0:00:24.9]} 30. c4 {[%clk 0:00:30.9]}
30... Bxc4 {[%clk 0:00:21.7]} 31. Rd7+ {[%clk 0:00:25.9]} 31... Rf7 {[%clk
0:00:19.9]} 32. Qc3 {[%clk 0:00:26.5]} 32... Rxd7 {[%clk 0:00:17.4]} 33. Nxd7
{[%clk 0:00:27.4]} 33... Bd3+ {[%clk 0:00:15.4]} 34. Ka1 {[%clk 0:00:26.6]}
34... Rd8 {[%clk 0:00:13.4]} 35. Nxf6+ {[%clk 0:00:22.4]} 35... Kg6 {[%clk
0:00:13.9]} 36. b3 {[%clk 0:00:16]} 36... Nd5 {[%clk 0:00:11.6]} 37. Qxd3+
{[%clk 0:00:12.8]} 37... Kxf6 {[%clk 0:00:12]} 38. Qf5+ {[%clk 0:00:13.4]} 38...
Ke7 {[%clk 0:00:09.6]} 39. Qxg5+ {[%clk 0:00:14.1]} 39... Kd7 {[%clk 0:00:10.3]}
40. Qf5+ {[%clk 0:00:13.6]} 40... Kc7 {[%clk 0:00:10.7]} 41. g5 {[%clk
0:00:14.1]} 41... Rd7 {[%clk 0:00:02.5]} 42. g6 {[%clk 0:00:12.5]} 42... Ne7
{[%clk 0:00:03]} 43. Qe5+ {[%clk 0:00:12.1]} 43... Kc8 {[%clk 0:00:02.2]} 44. g7
{[%clk 0:00:12.6]} 44... Rc7 {[%clk 0:00:02.1]} 45. Qe6+ {[%clk 0:00:11.3]}
45... Rd7 {[%clk 0:00:02.3]} 46. a4 {[%clk 0:00:05.5]} 46... Kc7 {[%clk
0:00:02.7]} 47. Qe5+ {[%clk 0:00:05.7]} 47... Kc8 {[%clk 0:00:03]} 48. a5 {[%clk
0:00:05.7]} 48... a6 {[%clk 0:00:02.6]} 49. Qe6 {[%clk 0:00:05.7]} 49... Kc7
{[%clk 0:00:01.5]} 50. Kb2 {[%clk 0:00:06.2]} 50... Kd8 {[%clk 0:00:01.8]} 51.
Qf7 {[%clk 0:00:06]} 51... Rd5 {[%clk 0:00:01.2]} 52. Qf8+ {[%clk 0:00:04.9]}
52... Kd7 {[%clk 0:00:01.4]} 53. g8=Q {[%clk 0:00:03.2]} 53... Nxg8 {[%clk
0:00:01.5]} 54. Qxg8 {[%clk 0:00:04.1]} 54... Kc7 {[%clk 0:00:02.4]} 55. b4
{[%clk 0:00:03.8]} 55... Kd7 {[%clk 0:00:02.1]} 56. Qb8 {[%clk 0:00:03.4]} 56...
Rb5 {[%clk 0:00:03]} 57. Kc3 {[%clk 0:00:03.4]} 57... Ke6 {[%clk 0:00:03.2]} 58.
Qd8 {[%clk 0:00:03.3]} 58... Ke5 {[%clk 0:00:03.1]} 59. Kc4 {[%clk 0:00:03]}
59... Ke6 {[%clk 0:00:04]} 60. Qc7 {[%clk 0:00:03.3]} 60... Kf6 {[%clk
0:00:04.2]} 61. Qd7 {[%clk 0:00:03.5]} 61... Ke5 {[%clk 0:00:04.2]} 62. Qd8
{[%clk 0:00:02.6]} 62... Ke6 {[%clk 0:00:04.7]} 63. Qc7 {[%clk 0:00:02.7]} 63...
Kf6 {[%clk 0:00:04.7]} 64. Qd7 {[%clk 0:00:03.1]} 64... Ke5 {[%clk 0:00:04.9]}
65. Kc3 {[%clk 0:00:03.6]} 65... Kf6 {[%clk 0:00:04.6]} 66. Qd6+ {[%clk
0:00:04.1]} 66... Kf7 {[%clk 0:00:04.9]} 67. Kc4 {[%clk 0:00:04.6]} 67... Ke8
{[%clk 0:00:05.3]} 68. Kb3 {[%clk 0:00:04.3]} 68... Kf7 {[%clk 0:00:05.1]} 69.
Kc3 {[%clk 0:00:04.3]} 69... Ke8 {[%clk 0:00:05.4]} 70. Qc7 {[%clk 0:00:04.7]}
70... Kf8 {[%clk 0:00:05.1]} 71. Qd7 {[%clk 0:00:05.2]} 71... c5 {[%clk
0:00:04.7]} 72. Qc8+ {[%clk 0:00:02.8]} 72... Ke7 {[%clk 0:00:02.9]} 73. Qc7+
{[%clk 0:00:03.2]} 73... Ke6 {[%clk 0:00:03.2]} 74. bxc5 {[%clk 0:00:03.8]}
74... Kd5 {[%clk 0:00:03.6]} 75. Qd6+ {[%clk 0:00:04.1]} 75... Ke4 {[%clk
0:00:04.3]} 76. Kc4 {[%clk 0:00:03.4]} 76... Rxa5 {[%clk 0:00:02.7]} 77. Qe7+
{[%clk 0:00:03.9]} 77... Kf5 {[%clk 0:00:02.5]} 78. Qxb7 {[%clk 0:00:04.2]} 1-0

[Event "Early-Titled-Tuesday-Blitz-October-24-2023"]
[Site "Chess.com"]
[Date "2023.10.24"]
[Round "8"]
[White "GiorgianBarbosa"]
[Black "Felix-Rose"]
[Result "1/2-1/2"]
[WhiteElo "2409"]
[BlackElo "2309"]
[TimeControl "180+1"]
[EndTime "9:27:31 PDT"]
[Termination "Game drawn by stalemate"]

1. c4 {[%clk 0:02:59.2]} 1... e6 {[%clk 0:02:59.6]} 2. g3 {[%clk 0:02:58]} 2...
d5 {[%clk 0:02:59.4]} 3. Bg2 {[%clk 0:02:58.6]} 3... Nf6 {[%clk 0:02:59.2]} 4.
Nf3 {[%clk 0:02:59.2]} 4... dxc4 {[%clk 0:02:56.9]} 5. O-O {[%clk 0:03:00.1]}
5... a6 {[%clk 0:02:56.3]} 6. a4 {[%clk 0:03:00]} 6... Nbd7 {[%clk 0:02:44]} 7.
a5 {[%clk 0:02:42.8]} 7... Rb8 {[%clk 0:02:34.5]} 8. Qc2 {[%clk 0:02:35.8]} 8...
b5 {[%clk 0:02:30.5]} 9. axb6 {[%clk 0:02:35.4]} 9... cxb6 {[%clk 0:02:24.2]}
10. Qxc4 {[%clk 0:02:34.3]} 10... b5 {[%clk 0:02:24.7]} 11. Qc2 {[%clk
0:02:30.9]} 11... Bb7 {[%clk 0:02:24.7]} 12. d3 {[%clk 0:02:24.7]} 12... Rc8
{[%clk 0:02:23.8]} 13. Qd1 {[%clk 0:02:22.6]} 13... Bc5 {[%clk 0:02:19.9]} 14.
Nbd2 {[%clk 0:02:11.7]} 14... Qb6 {[%clk 0:02:18.1]} 15. Nb3 {[%clk 0:02:08.9]}
15... Bb4 {[%clk 0:02:08.8]} 16. Be3 {[%clk 0:02:04.8]} 16... Qc7 {[%clk
0:02:02.8]} 17. Rc1 {[%clk 0:02:02.6]} 17... Qb8 {[%clk 0:01:58.2]} 18. Bd2
{[%clk 0:01:49.7]} 18... Rxc1 {[%clk 0:01:51.4]} 19. Qxc1 {[%clk 0:01:50.6]}
19... Bxd2 {[%clk 0:01:50.7]} 20. Qxd2 {[%clk 0:01:51.5]} 20... O-O {[%clk
0:01:50.3]} 21. Na5 {[%clk 0:01:48.5]} 21... Ba8 {[%clk 0:01:44.5]} 22. Rc1
{[%clk 0:01:45.8]} 22... Rc8 {[%clk 0:01:44]} 23. b4 {[%clk 0:01:44.9]} 23...
Nb6 {[%clk 0:01:25]} 24. e4 {[%clk 0:01:13.4]} 24... Rxc1+ {[%clk 0:01:15.6]}
25. Qxc1 {[%clk 0:01:14.3]} 25... h6 {[%clk 0:01:08]} 26. Nd4 {[%clk 0:01:06.9]}
26... Qd6 {[%clk 0:00:55.4]} 27. Qc5 {[%clk 0:00:51.9]} 27... Ne8 {[%clk
0:00:33.3]} 28. Ndc6 {[%clk 0:00:39.3]} 28... Na4 {[%clk 0:00:20.5]} 29. Qxd6
{[%clk 0:00:31.8]} 29... Nxd6 {[%clk 0:00:20.9]} 30. Nb8 {[%clk 0:00:27.5]}
30... e5 {[%clk 0:00:11.2]} 31. Nxa6 {[%clk 0:00:26.8]} 31... Nb2 {[%clk
0:00:10.6]} 32. Nc5 {[%clk 0:00:24.9]} 32... f5 {[%clk 0:00:05.5]} 33. exf5
{[%clk 0:00:18.1]} 33... Bxg2 {[%clk 0:00:05.7]} 34. Kxg2 {[%clk 0:00:19]} 34...
Nxf5 {[%clk 0:00:06.4]} 35. Nc6 {[%clk 0:00:16.6]} 35... Nd4 {[%clk 0:00:06.5]}
36. Nxd4 {[%clk 0:00:11.2]} 36... exd4 {[%clk 0:00:06.9]} 37. Kf3 {[%clk
0:00:12.1]} 37... Nd1 {[%clk 0:00:05.5]} 38. Ke2 {[%clk 0:00:11.3]} 38... Nc3+
{[%clk 0:00:05.9]} 39. Kd2 {[%clk 0:00:11.7]} 39... Nd5 {[%clk 0:00:06.3]} 40.
Na6 {[%clk 0:00:10.5]} 40... Kf7 {[%clk 0:00:06.5]} 41. Ke2 {[%clk 0:00:10.9]}
41... Ke6 {[%clk 0:00:06.7]} 42. Kf3 {[%clk 0:00:11.1]} 42... Ke5 {[%clk
0:00:06]} 43. h4 {[%clk 0:00:11.1]} 43... g5 {[%clk 0:00:06.4]} 44. hxg5 {[%clk
0:00:09.8]} 44... hxg5 {[%clk 0:00:07.3]} 45. Kg4 {[%clk 0:00:10.3]} 45... Kf6
{[%clk 0:00:07.9]} 46. f4 {[%clk 0:00:10.2]} 46... gxf4 {[%clk 0:00:08]} 47.
gxf4 {[%clk 0:00:11.1]} 47... Ke6 {[%clk 0:00:06.5]} 48. Kg5 {[%clk 0:00:09.8]}
48... Kf7 {[%clk 0:00:05.6]} 49. Kf5 {[%clk 0:00:09.5]} 49... Ke7 {[%clk
0:00:06]} 50. Ke4 {[%clk 0:00:09.6]} 50... Kd6 {[%clk 0:00:06]} 51. Kxd4 {[%clk
0:00:09.4]} 51... Nxf4 {[%clk 0:00:06.6]} 52. Nc5 {[%clk 0:00:09.4]} 52... Ne2+
{[%clk 0:00:05.9]} 53. Ke3 {[%clk 0:00:09.6]} 53... Nc3 {[%clk 0:00:06.6]} 54.
Kd2 {[%clk 0:00:09.4]} 54... Nd5 {[%clk 0:00:07.2]} 55. Na6 {[%clk 0:00:08.4]}
55... Kc6 {[%clk 0:00:07.8]} 56. Kc2 {[%clk 0:00:05]} 56... Kb6 {[%clk
0:00:07.9]} 57. Nb8 {[%clk 0:00:05.5]} 57... Nxb4+ {[%clk 0:00:08.3]} 58. Kd2
{[%clk 0:00:06.4]} 58... Kc7 {[%clk 0:00:07.6]} 59. Kc3 {[%clk 0:00:04.6]} 59...
Nxd3 {[%clk 0:00:07.3]} 60. Kxd3 {[%clk 0:00:04.7]} 60... Kxb8 {[%clk
0:00:08.1]} 61. Kd4 {[%clk 0:00:05.6]} 61... Kb7 {[%clk 0:00:08.4]} 62. Kc5
{[%clk 0:00:06.2]} 62... Ka6 {[%clk 0:00:09.3]} 63. Kb4 {[%clk 0:00:07.1]} 63...
Kb6 {[%clk 0:00:09.7]} 64. Kb3 {[%clk 0:00:07.7]} 64... Kc5 {[%clk 0:00:10.4]}
65. Kc3 {[%clk 0:00:08.4]} 65... Kd5 {[%clk 0:00:10]} 66. Kb4 {[%clk 0:00:08.7]}
66... Kc6 {[%clk 0:00:10.7]} 67. Kb3 {[%clk 0:00:09]} 67... Kb6 {[%clk
0:00:11.4]} 68. Kb4 {[%clk 0:00:09.2]} 68... Ka6 {[%clk 0:00:12.2]} 69. Kb3
{[%clk 0:00:09.6]} 69... Ka5 {[%clk 0:00:13.1]} 70. Ka3 {[%clk 0:00:09.6]} 70...
b4+ {[%clk 0:00:13.7]} 71. Kb3 {[%clk 0:00:09.9]} 71... Kb5 {[%clk 0:00:14.6]}
72. Kb2 {[%clk 0:00:10.4]} 72... Kc4 {[%clk 0:00:14.9]} 73. Kc2 {[%clk
0:00:10.6]} 73... Kd4 {[%clk 0:00:14.8]} 74. Kb3 {[%clk 0:00:11.1]} 74... Kc5
{[%clk 0:00:15.5]} 75. Kb2 {[%clk 0:00:10.7]} 75... Kb6 {[%clk 0:00:16.3]} 76.
Kb3 {[%clk 0:00:10.9]} 76... Ka5 {[%clk 0:00:16.9]} 77. Kb2 {[%clk 0:00:11.5]}
77... Ka4 {[%clk 0:00:17.6]} 78. Ka2 {[%clk 0:00:11.7]} 78... Ka5 {[%clk
0:00:17.5]} 79. Kb3 {[%clk 0:00:12.1]} 79... Kb5 {[%clk 0:00:18.4]} 80. Kb2
{[%clk 0:00:12.3]} 80... Kc4 {[%clk 0:00:19.3]} 81. Kc2 {[%clk 0:00:12.3]} 81...
b3+ {[%clk 0:00:20.2]} 82. Kb2 {[%clk 0:00:12.6]} 82... Kb4 {[%clk 0:00:20.7]}
83. Kb1 {[%clk 0:00:12.5]} 83... Kb5 {[%clk 0:00:21.3]} 84. Kb2 {[%clk
0:00:12.8]} 84... Kb4 {[%clk 0:00:22]} 85. Kb1 {[%clk 0:00:13]} 85... Kc3 {[%clk
0:00:22.8]} 86. Kc1 {[%clk 0:00:13.1]} 86... Kd3 {[%clk 0:00:23.6]} 87. Kb2
{[%clk 0:00:13.5]} 87... Kc4 {[%clk 0:00:24.5]} 88. Kb1 {[%clk 0:00:13]} 88...
Kb4 {[%clk 0:00:25.2]} 89. Kb2 {[%clk 0:00:13.3]} 89... Ka4 {[%clk 0:00:25.9]}
90. Kb1 {[%clk 0:00:13]} 90... Ka3 {[%clk 0:00:26.8]} 91. Ka1 {[%clk 0:00:13.2]}
91... b2+ {[%clk 0:00:26.7]} 92. Kb1 {[%clk 0:00:13.6]} 92... Kb3 {[%clk
0:00:27.3]} 1/2-1/2